[Event "4NCL 2021-22"]
[Site "England"]
[Date "2022.03.27"]
[Round "6.32"]
[White "Ashton, Adam G"]
[Black "Murphy, Hugh W"]
[Result "1-0"]
[ECO "A10"]
[WhiteElo "2379"]
[BlackElo "2107"]
[Annotator "ChessBase"]
[PlyCount "43"]
[EventDate "2021.11.27"]
[EventType "team-tourn"]
[EventCountry "ENG"]
[SourceTitle "playchess.com"]
[Source "ChessBase"]
[SourceQuality "1"]
[TimeControl "40/6000+30:3000+30"]

1. c4 {[%emt 0:01:08]} f5 {[%emt 0:12:48]} 2. g3 {[%emt 0:03:16]} Nf6 {[%emt 0:01:52]} 3. Bg2 {[%emt 0:00:08]} e6 {[%emt 0:01:42]} 4. d3 {[%emt 0:05:22]} Be7 {[%emt 0:06:35]} 5. e4 {[%emt 0:05:50]} fxe4 {[%emt 0:02:51]} 6. dxe4 {[%emt 0:00:06]} e5 {[%emt 0:01:09]} 7. f4 {[%emt 0:17:53]} Nc6 {[%emt 0:11:45]} 8. Nf3 {[%emt 0:06:45]} exf4 {[%emt 0:01:29]} 9. e5 {[%emt 0:13:30]} Ng4 {[%emt 0:16:19]} 10. Bxf4 {[%emt 0:01:08]} Bb4+ {[%emt 0:05:58]} 11. Nc3 {[%emt 0:02:06]} Qe7 {[%emt 0:01:38]} 12. O-O {[%emt 0:12:15]} Bxc3 {[%emt 0:01:39]} 13. bxc3 {[%emt 0:01:03]} Qc5+ {[%emt 0:01:34]} 14. Nd4 {[%emt 0:06:11]} Ngxe5 {[%emt 0:05:54]} 15. Bxc6 {[%emt 0:11:13]} Nxc6 {[%emt 0:01:15]} 16. Re1+ {[%emt 0:04:31]} Kf7 {[%emt 0:05:43]} 17. Qf3 {[%emt 0:01:42]} Nxd4 {[%emt 0:03:02]} 18. cxd4 {[%emt 0:00:49]} Qxd4+ {[%emt 0:02:13]} 19. Kh1 {[%emt 0:05:55]} Qf6 {[%emt 0:00:35]} 20. Qh5+ {[%emt 0:01:27]} Qg6 {[%emt 0:04:19]} 21. Qd5+ {[%emt 0:00:07]} Kf8 {[%emt 0:00:46]} 22. Bxc7 {[%emt 0:01:02]} 1-0

[Event "4NCL 2021-22"]
[Site "England"]
[Date "2022.03.27"]
[Round "6.33"]
[White "Jones, Steven A"]
[Black "Barry, Colm"]
[Result "1-0"]
[ECO "C41"]
[WhiteElo "2215"]
[BlackElo "2241"]
[Annotator "ChessBase"]
[PlyCount "69"]
[EventDate "2021.11.27"]
[EventType "team-tourn"]
[EventCountry "ENG"]
[SourceTitle "playchess.com"]
[Source "ChessBase"]
[SourceQuality "1"]
[TimeControl "40/6000+30:3000+30"]

1. e4 {[%emt 0:00:40]} d6 {[%emt 0:00:12]} 2. d4 {[%emt 0:01:22]} Nf6 {[%emt 0:00:14]} 3. Nc3 {[%emt 0:00:35]} Nbd7 {[%emt 0:00:13]} 4. Nf3 {[%emt 0:01:03]} e5 {[%emt 0:00:19]} 5. Bc4 {[%emt 0:02:08]} Be7 {[%emt 0:00:14]} 6. a4 {[%emt 0:06:58]} O-O {[%emt 0:03:06]} 7. O-O {[%emt 0:00:08]} exd4 {[%emt 0:01:55]} 8. Qxd4 {[%emt 0:00:30]} Nc5 {[%emt 0:04:42]} 9. h3 {[%emt 0:04:52]} c6 {[%emt 0:03:40]} 10. Rd1 {[%emt 0:12:17]} Be6 {[%emt 0:12:01]} 11. Bf4 {[%emt 0:08:24]} Bxc4 {[%emt 0:40:27]} 12. Qxc4 {[%emt 0:00:42]} Ne6 {[%emt 0:03:58]} 13. Bxd6 {[%emt 0:05:26]} Bxd6 {[%emt 0:00:46]} 14. e5 {[%emt 0:00:08]} Ne8 {[%emt 0:02:43]} 15. Ne4 {[%emt 0:02:34]} Qa5 {[%emt 0:18:22]} 16. exd6 {[%emt 0:05:02]} Rd8 {[%emt 0:00:12]} 17. b4 {[%emt 0:01:26]} Qf5 {[%emt 0:00:38]} 18. d7 {[%emt 0:06:26]} Nf6 {[%emt 0:00:25]} 19. Nd6 {[%emt 0:00:22]} Qf4 {[%emt 0:00:44]} 20. Qxf4 {[%emt 0:01:04]} Nxf4 {[%emt 0:00:05]} 21. Ne5 {[%emt 0:00:48]} Ng6 {[%emt 0:00:17]} 22. Nxg6 {[%emt 0:05:05]} hxg6 {[%emt 0:00:06]} 23. Nxb7 {[%emt 0:00:12]} Rxd7 {[%emt 0:00:05]} 24. Rxd7 {[%emt 0:00:14]} Nxd7 {[%emt 0:00:07]} 25. Rd1 {[%emt 0:00:59]} Nb6 {[%emt 0:00:27]} 26. Nd8 {[%emt 0:01:20]} c5 {[%emt 0:06:22]} 27. bxc5 {[%emt 0:00:32]} Nxa4 {[%emt 0:00:16]} 28. c6 {[%emt 0:00:08]} Nb6 {[%emt 0:00:59]} 29. c7 {[%emt 0:00:14]} Re8 {[%emt 0:00:35]} 30. Rb1 {[%emt 0:00:53]} Re7 {[%emt 0:00:49]} 31. Rxb6 {[%emt 0:00:17]} Rxc7 {[%emt 0:00:05]} 32. Rb8 {[%emt 0:00:42]} Rxc2 {[%emt 0:00:24]} 33. Ne6+ {[%emt 0:00:19]} Kh7 {[%emt 0:00:12]} 34. Ng5+ {[%emt 0:00:04]} Kh6 {[%emt 0:00:08]} 35. f4 {[%emt 0:00:42]} 1-0

[Event "4NCL 2021-22"]
[Site "England"]
[Date "2022.03.27"]
[Round "6.34"]
[White "Sucikova, Svetlana"]
[Black "Cooper, John G"]
[Result "1/2-1/2"]
[ECO "D94"]
[WhiteElo "2200"]
[BlackElo "2234"]
[Annotator "ChessBase"]
[PlyCount "36"]
[EventDate "2021.11.27"]
[EventType "team-tourn"]
[EventCountry "ENG"]
[SourceTitle "playchess.com"]
[Source "ChessBase"]
[SourceQuality "1"]
[TimeControl "40/6000+30:3000+30"]

1. e3 {[%emt 0:00:41]} g6 {[%emt 0:01:36]} 2. c4 {[%emt 0:02:50]} Bg7 {[%emt 0:00:15]} 3. Nc3 {[%emt 0:00:25]} Nf6 {[%emt 0:00:51]} 4. Nf3 {[%emt 0:02:07]} O-O {[%emt 0:00:17]} 5. d4 {[%emt 0:01:05]} d5 {[%emt 0:06:55]} 6. b3 {[%emt 0:02:50]} c5 {[%emt 0:02:55]} 7. Bb2 {[%emt 0:02:03]} cxd4 {[%emt 0:05:02]} 8. Nxd4 {[%emt 0:02:44]} Nc6 {[%emt 0:14:45]} 9. Nxc6 {[%emt 0:11:36]} bxc6 {[%emt 0:01:20]} 10. Be2 {[%emt 0:00:46]} Ne4 {[%emt 0:12:49]} 11. Qc2 {[%emt 0:14:59]} Qa5 {[%emt 0:00:49]} 12. Rc1 {[%emt 0:01:07]} Rb8 {[%emt 0:02:42]} 13. cxd5 {[%emt 0:25:47]} cxd5 {[%emt 0:00:38]} 14. O-O {[%emt 0:00:06]} Nxc3 {[%emt 0:07:18]} 15. Bxc3 {[%emt 0:00:06]} Bxc3 {[%emt 0:00:04]} 16. Qxc3 {[%emt 0:00:07]} Qxa2 {[%emt 0:00:13]} 17. Bd1 {[%emt 0:00:04]} Qa3 {[%emt 0:09:38]} 18. Ra1 {[%emt 0:01:46]} Qd6 {[%emt 0:00:11]} 1/2-1/2

[Event "4NCL 2021-22"]
[Site "England"]
[Date "2022.03.27"]
[Round "6.35"]
[White "Blackburn, Jonathan L B"]
[Black "Wall, Tim P"]
[Result "1/2-1/2"]
[ECO "A57"]
[WhiteElo "2227"]
[BlackElo "2281"]
[Annotator "NA"]
[PlyCount "98"]
[EventDate "2021.11.27"]
[EventType "team-tourn"]
[EventCountry "ENG"]
[SourceTitle "playchess.com"]
[Source "ChessBase"]
[SourceQuality "1"]
[TimeControl "40/6000+30:3000+30"]

1. d4 {[%emt 0:00:04]} Nf6 {[%emt 0:02:00]} 2. c4 {[%emt 0:00:26]} c5 {[%emt 0:00:12]} 3. d5 {[%emt 0:00:05]} b5 {[%emt 0:00:10]} 4. cxb5 {[%emt 0:00:03]} a6 {[%emt 0:00:09]} 5. e3 {[%emt 0:00:25]} g6 {[%emt 0:02:06]} 6. Nc3 {[%emt 0:00:09]} Bg7 {[%emt 0:00:09]} 7. Nf3 {[%emt 0:04:12]} O-O {[%emt 0:00:19]} 8. Bc4 {[%emt 0:07:09]} d6 {[%emt 0:04:43]} 9. O-O {[%emt 0:02:29]} Nbd7 {[%emt 0:01:17]} 10. bxa6 {[%emt 0:05:02]} Nb6 {[%emt 0:02:52]} 11. Bb5 {[%emt 0:00:48]} Bxa6 {[%emt 0:01:05]} 12. Bxa6 {[%emt 0:00:44]} Rxa6 {[%emt 0:00:09]} 13. e4 {[%emt 0:13:42]} Qa8 {[%emt 0:03:07]} 14. Re1 {[%emt 0:04:05]} Na4 {[%emt 0:03:24]} 15. Qc2 {[%emt 0:05:04]} Rb8 {[%emt 0:14:17]} 16. Nxa4 {[%emt 0:03:04]} Rxa4 {[%emt 0:00:12]} 17. a3 {[%emt 0:01:49]} Ng4 {[%emt 0:14:47]} 18. Rb1 {[%emt 0:03:42]} c4 {[%emt 0:01:39]} 19. h3 {[%emt 0:06:30]} Ne5 {[%emt 0:02:05]} 20. Nxe5 {[%emt 0:00:13]} Bxe5 {[%emt 0:00:10]} 21. b3 {[%emt 0:02:16]} cxb3 {[%emt 0:09:06]} 22. Rxb3 {[%emt 0:00:07]} Rc8 {[%emt 0:00:16]} 23. Qb1 $11 {[%emt 0:09:43]} Rac4 {[%emt 0:03:32]} 24. Bb2 {[%emt 0:08:06]} Bxb2 {[%emt 0:10:32]} 25. Qxb2 {[%emt 0:00:09]} Rc2 {[%emt 0:00:35]} 26. Qd4 {[%emt 0:00:49]} R2c4 {[%emt 0:03:30]} 27. Qe3 {[%emt 0:06:02]} Ra4 {[%emt 0:03:33]} 28. h4 {[%emt 0:06:08]} h5 {[%emt 0:02:34]} 29. Reb1 {[%emt 0:02:24]} Qa7 {[%emt 0:06:49]} 30. Qxa7 {[%emt 0:07:20]} Rxa7 {[%emt 0:00:54]} 31. Rb7 {[%emt 0:00:45]} Rca8 {[%emt 0:00:00]} 32. f3 {[%emt 0:01:53]} f5 {[%emt 0:06:19]} 33. a4 {[%emt 0:02:58]} fxe4 {[%emt 0:11:39]} 34. fxe4 {[%emt 0:00:05]} Rxb7 {[%emt 0:00:05]} 35. Rxb7 {[%emt 0:00:04]} Kf7 {[%emt 0:00:05]} 36. Rb4 {[%emt 0:01:37]} Rc8 {[%emt 0:01:19]} 37. Kf2 {[%emt 0:01:17]} Rc3 {[%emt 0:01:31]} 38. Ke2 {[%emt 0:00:30]} Kf6 {[%emt 0:00:29]} 39. Kd2 {[%emt 0:00:50]} Rg3 {[%emt 0:00:28]} 40. Kc2 {[%emt 0:01:18]} g5 {[%emt 0:01:38]} 41. hxg5+ {[%emt 0:08:03]} Rxg5 {[%emt 0:05:12]} 42. a5 {[%emt 0:03:40]} Rxg2+ {[%emt 0:07:16]} 43. Kb3 {[%emt 0:01:03]} Rg8 {[%emt 0:02:21]} 44. Kc4 {[%emt 0:19:11]} h4 {[%emt 0:05:50]} 45. Kd4 {[%emt 0:28:21]} Rg1 {[%emt 0:16:56]} 46. Ra4 {[%emt 0:00:00]} h3 {[%emt 0:01:04]} 47. Ra2 {[%emt 0:00:00]} Rg2 {[%emt 0:02:42]} 48. Ra1 {[%emt 0:00:00]} h2 {[%emt 0:07:00]} 49. Rh1 {[%emt 0:00:00]} Ra2 {[%emt 0:01:49]} 1/2-1/2

[Event "4NCL 2021-22"]
[Site "England"]
[Date "2022.03.27"]
[Round "6.36"]
[White "Townsend, M Paul"]
[Black "Zeidler, Sven P."]
[Result "1-0"]
[ECO "A26"]
[WhiteElo "2284"]
[BlackElo "2172"]
[Annotator "NA"]
[PlyCount "123"]
[EventDate "2021.11.27"]
[EventType "team-tourn"]
[EventCountry "ENG"]
[SourceTitle "playchess.com"]
[Source "ChessBase"]
[SourceQuality "1"]
[TimeControl "40/6000+30:3000+30"]

1. c4 {[%emt 0:00:05]} f5 {[%emt 0:00:06]} 2. g3 {[%emt 0:00:16]} Nf6 {[%emt 0:00:04]} 3. Bg2 {[%emt 0:00:06]} g6 {[%emt 0:00:04]} 4. Nc3 {[%emt 0:00:32]} Bg7 {[%emt 0:00:06]} 5. d3 {[%emt 0:00:21]} d6 {[%emt 0:01:21]} 6. e4 {[%emt 0:00:19]} Nc6 {[%emt 0:01:38]} 7. Nge2 {[%emt 0:00:25]} O-O {[%emt 0:01:10]} 8. O-O {[%emt 0:00:55]} e5 {[%emt 0:00:44]} 9. f3 {[%emt 0:04:44]} Be6 {[%emt 0:04:21]} 10. Nd5 {[%emt 0:00:29]} Ne7 {[%emt 0:01:00]} 11. Bg5 {[%emt 0:33:35]} c6 {[%emt 0:04:50]} 12. Nxf6+ {[%emt 0:06:03]} Bxf6 {[%emt 0:00:17]} 13. Bxf6 {[%emt 0:00:19]} Rxf6 {[%emt 0:00:24]} 14. Qd2 {[%emt 0:07:18]} Qb6+ {[%emt 0:17:24]} 15. Kh1 {[%emt 0:00:16]} Raf8 {[%emt 0:00:31]} 16. Rac1 {[%emt 0:11:30]} d5 {[%emt 0:02:28]} 17. exd5 {[%emt 0:02:36]} cxd5 {[%emt 0:00:10]} 18. d4 {[%emt 0:00:46]} dxc4 {[%emt 0:08:45]} 19. dxe5 {[%emt 0:00:37]} R6f7 {[%emt 0:04:14]} 20. Nf4 {[%emt 0:04:30]} Rd8 {[%emt 0:00:53]} 21. Qf2 {[%emt 0:00:39]} Qa6 {[%emt 0:09:03]} 22. Rfd1 {[%emt 0:19:54]} Rff8 {[%emt 0:00:30]} 23. Qc5 {[%emt 0:01:56]} Kf7 {[%emt 0:04:48]} 24. Rd6 {[%emt 0:01:07]} Rxd6 {[%emt 0:02:12]} 25. exd6 {[%emt 0:00:08]} Nc6 {[%emt 0:04:34]} 26. Bf1 {[%emt 0:08:20]} Qb6 {[%emt 0:04:46]} 27. Nxe6 {[%emt 0:00:25]} Kxe6 {[%emt 0:00:04]} 28. Bxc4+ {[%emt 0:01:11]} Kd7 {[%emt 0:00:29]} 29. Qd5 {[%emt 0:01:05]} Qxb2 {[%emt 0:08:06]} 30. Rd1 {[%emt 0:01:05]} Qe5 {[%emt 0:01:38]} 31. Qd3 {[%emt 0:02:20]} Rf6 {[%emt 0:02:02]} 32. Qb3 {[%emt 0:00:18]} Rxd6 {[%emt 0:15:50]} 33. Qxb7+ {[%emt 0:00:08]} Kd8 {[%emt 0:00:10]} 34. Qa8+ {[%emt 0:00:36]} Ke7 {[%emt 0:01:07]} 35. Rb1 {[%emt 0:00:48]} Qc3 {[%emt 0:02:09]} 36. Qb7+ {[%emt 0:01:16]} Kd8 {[%emt 0:03:01]} 37. Qa8+ {[%emt 0:00:39]} Ke7 {[%emt 0:00:08]} 38. Qb7+ {[%emt 0:00:09]} Kd8 {[%emt 0:00:59]} 39. Be2 {[%emt 0:00:42]} Qc2 {[%emt 0:05:31]} 40. Rb2 {[%emt 0:01:07]} Qc1+ {[%emt 0:00:37]} 41. Kg2 {[%emt 0:50:07]} Rd7 {[%emt 0:05:14]} 42. Qb3 {[%emt 0:00:00]} Qh6 {[%emt 0:09:27]} 43. Qc3 {[%emt 0:00:00]} Qg7 {[%emt 0:02:47]} 44. Qc1 {[%emt 0:00:00]} Rc7 {[%emt 0:07:02]} 45. Rd2+ {[%emt 0:00:00]} Nd4 {[%emt 0:04:31]} 46. Qb2 {[%emt 0:00:00]} Rd7 {[%emt 0:00:17]} 47. Bb5 {[%emt 0:00:00]} Rd6 {[%emt 0:04:05]} 48. Ba4 {[%emt 0:00:00]} Ke7 {[%emt 0:03:19]} 49. Qb8 {[%emt 0:00:00]} Qe5 {[%emt 0:03:44]} 50. Qxa7+ {[%emt 0:00:00]} Kf8 {[%emt 0:02:11]} 51. Bb3 {[%emt 0:00:00]} Qf6 {[%emt 0:03:41]} 52. Qxh7 {[%emt 0:00:00]} f4 {[%emt 0:03:22]} 53. Qh6+ {[%emt 0:00:00]} Ke7 {[%emt 0:01:16]} 54. Qxf4 {[%emt 0:00:01]} Qxf4 {[%emt 0:01:03]} 55. gxf4 {[%emt 0:00:01]} Kf6 {[%emt 0:00:09]} 56. Kf2 {[%emt 0:00:12]} Rd8 {[%emt 0:01:28]} 57. a4 {[%emt 0:02:42]} Ke7 {[%emt 0:00:51]} 58. Bc4 {[%emt 0:00:19]} Rd6 {[%emt 0:01:10]} 59. a5 {[%emt 0:00:25]} Kd7 {[%emt 0:00:16]} 60. a6 {[%emt 0:00:28]} Kc6 {[%emt 0:00:06]} 61. Ra2 {[%emt 0:00:52]} Rd8 {[%emt 0:01:30]} 62. Bd3 {[%emt 0:01:49]} 1-0

[Event "4NCL 2021-22"]
[Site "England"]
[Date "2022.03.27"]
[Round "6.37"]
[White "Kett, Tim"]
[Black "Weller, Jean-Luc"]
[Result "0-1"]
[ECO "C02"]
[WhiteElo "2136"]
[BlackElo "2230"]
[Annotator "NA"]
[PlyCount "68"]
[EventDate "2021.11.27"]
[EventType "team-tourn"]
[EventCountry "ENG"]
[SourceTitle "playchess.com"]
[Source "ChessBase"]
[SourceQuality "1"]
[TimeControl "40/6000+30:3000+30"]

1. e4 {[%emt 0:00:04]} e6 {[%emt 0:03:56]} 2. d4 {[%emt 0:00:31]} d5 {[%emt 0:00:18]} 3. e5 {[%emt 0:00:10]} c5 {[%emt 0:00:08]} 4. c3 {[%emt 0:00:07]} Nc6 {[%emt 0:00:13]} 5. Nf3 {[%emt 0:00:08]} Qb6 {[%emt 0:00:11]} 6. Bd3 {[%emt 0:00:07]} cxd4 {[%emt 0:01:02]} 7. O-O {[%emt 0:00:15]} Bd7 {[%emt 0:01:31]} 8. h4 {[%emt 0:00:35]} g6 {[%emt 0:23:17]} 9. Re1 {[%emt 0:08:06]} Bg7 {[%emt 0:02:03]} 10. a3 {[%emt 0:14:06]} Nge7 {[%emt 0:02:03]} 11. b4 {[%emt 0:00:22]} dxc3 {[%emt 0:08:01]} 12. Nxc3 {[%emt 0:01:36]} Nd4 {[%emt 0:02:06]} 13. Be3 {[%emt 0:29:48]} Nxf3+ {[%emt 0:02:40]} 14. Qxf3 {[%emt 0:00:34]} d4 {[%emt 0:19:53]} 15. Ne4 {[%emt 0:00:58]} dxe3 {[%emt 0:18:37]} 16. Nd6+ {[%emt 0:00:21]} Kd8 {[%emt 0:00:04]} 17. Nxb7+ {[%emt 0:17:56]} Kc7 {[%emt 0:00:21]} 18. Rec1+ {[%emt 0:07:56]} Kb8 {[%emt 0:05:10]} 19. Nc5 {[%emt 0:03:08]} Bc8 {[%emt 0:00:20]} 20. Be4 {[%emt 0:13:02]} exf2+ {[%emt 0:01:04]} 21. Qxf2 {[%emt 0:06:58]} Nd5 {[%emt 0:00:29]} 22. Qxf7 {[%emt 0:01:28]} Bxe5 {[%emt 0:01:45]} 23. Bxd5 {[%emt 0:01:51]} exd5 {[%emt 0:00:11]} 24. Ra2 {[%emt 0:00:16]} Qf6 {[%emt 0:04:38]} 25. Qxf6 {[%emt 0:01:58]} Bxf6 {[%emt 0:00:02]} 26. Rd1 {[%emt 0:00:37]} Rd8 {[%emt 0:00:37]} 27. g3 {[%emt 0:00:13]} a6 {[%emt 0:01:13]} 28. Rf2 {[%emt 0:00:06]} Be5 {[%emt 0:02:14]} 29. Rf7 {[%emt 0:00:23]} Ra7 {[%emt 0:00:26]} 30. Rdf1 {[%emt 0:00:22]} Bf5 {[%emt 0:01:59]} 31. Rxa7 {[%emt 0:00:24]} Kxa7 {[%emt 0:00:02]} 32. g4 {[%emt 0:00:13]} Bd4+ {[%emt 0:01:13]} 33. Kh2 {[%emt 0:00:09]} Bxc5 {[%emt 0:00:21]} 34. gxf5 {[%emt 0:00:05]} Bd6+ {[%emt 0:00:13]} 0-1

[Event "4NCL 2021-22"]
[Site "England"]
[Date "2022.03.27"]
[Round "6.38"]
[White "Gayson, Peter M"]
[Black "Redmond, John P."]
[Result "1-0"]
[ECO "C07"]
[WhiteElo "2127"]
[BlackElo "2210"]
[Annotator "NA"]
[PlyCount "67"]
[EventDate "2021.11.27"]
[EventType "team-tourn"]
[EventCountry "ENG"]
[SourceTitle "playchess.com"]
[Source "ChessBase"]
[SourceQuality "1"]
[TimeControl "40/6000+30:3000+30"]

1. e4 {[%emt 0:00:04]} e6 {[%emt 0:00:11]} 2. d4 {[%emt 0:00:42]} d5 {[%emt 0:00:08]} 3. Nd2 {[%emt 0:00:25]} c5 {[%emt 0:00:16]} 4. Ngf3 {[%emt 0:00:17]} cxd4 {[%emt 0:00:13]} 5. exd5 {[%emt 0:00:18]} Qxd5 {[%emt 0:00:10]} 6. Bc4 {[%emt 0:00:29]} Qd6 {[%emt 0:00:11]} 7. O-O {[%emt 0:00:29]} Nf6 {[%emt 0:00:10]} 8. Nb3 {[%emt 0:00:31]} Nc6 {[%emt 0:00:10]} 9. Nbxd4 {[%emt 0:00:15]} Nxd4 {[%emt 0:00:08]} 10. Nxd4 {[%emt 0:00:14]} Be7 {[%emt 0:00:10]} 11. Be3 {[%emt 0:04:56]} O-O {[%emt 0:00:25]} 12. Qf3 {[%emt 0:05:18]} Qc7 {[%emt 0:02:58]} 13. Bb3 {[%emt 0:03:54]} Bd7 {[%emt 0:01:14]} 14. Rad1 {[%emt 0:09:05]} Bd6 {[%emt 0:03:18]} 15. Qh3 {[%emt 0:21:27]} Bf4 {[%emt 0:08:34]} 16. Bxf4 {[%emt 0:02:51]} Qxf4 {[%emt 0:00:11]} 17. Qf3 {[%emt 0:05:34]} Qc7 {[%emt 0:13:32]} 18. h3 {[%emt 0:05:16]} Rfd8 {[%emt 0:07:36]} 19. Rfe1 {[%emt 0:01:52]} Rac8 $11 {[%emt 0:10:13]} 20. c3 {[%emt 0:05:33]} a5 {[%emt 0:02:46]} 21. a4 {[%emt 0:10:04]} Qb6 {[%emt 0:03:34]} 22. Qe2 {[%emt 0:02:25]} Kh8 {[%emt 0:07:36]} 23. Rd2 {[%emt 0:07:29]} Be8 {[%emt 0:06:57]} 24. Qd1 {[%emt 0:02:31]} Rd6 {[%emt 0:06:49]} 25. Ree2 {[%emt 0:06:40]} Rcd8 {[%emt 0:11:34]} 26. Bc4 {[%emt 0:01:48]} Nd5 {[%emt 0:07:39]} 27. Nf5 {[%emt 0:03:28]} exf5 {[%emt 0:13:31]} 28. Rxd5 {[%emt 0:02:28]} Rxd5 {[%emt 0:01:08]} 29. Qxd5 {[%emt 0:04:10]} g6 {[%emt 0:01:19]} 30. Qe5+ {[%emt 0:01:08]} Kg8 {[%emt 0:00:27]} 31. b3 {[%emt 0:01:38]} Bc6 {[%emt 0:02:09]} 32. Qe7 {[%emt 0:01:00]} Rf8 {[%emt 0:00:23]} 33. Qf6 {[%emt 0:00:32]} Qd8 {[%emt 0:00:45]} 34. Bxf7+ {[%emt 0:00:16]} 1-0

[Event "4NCL 2021-22"]
[Site "England"]
[Date "2022.03.27"]
[Round "6.39"]
[White "Khoury, Theo"]
[Black "Clarke, Connor"]
[Result "1/2-1/2"]
[ECO "B04"]
[WhiteElo "2011"]
[BlackElo "1830"]
[Annotator "NA"]
[PlyCount "127"]
[EventDate "2021.11.27"]
[EventType "team-tourn"]
[EventCountry "ENG"]
[SourceTitle "playchess.com"]
[Source "ChessBase"]
[SourceQuality "1"]
[TimeControl "40/6000+30:3000+30"]

1. e4 {[%emt 0:00:04]} Nf6 {[%emt 0:00:12]} 2. e5 {[%emt 0:00:13]} Nd5 {[%emt 0:00:10]} 3. d4 {[%emt 0:00:20]} d6 {[%emt 0:00:16]} 4. Nf3 {[%emt 0:00:40]} dxe5 {[%emt 0:00:09]} 5. Nxe5 {[%emt 0:00:08]} g6 {[%emt 0:00:12]} 6. Bc4 {[%emt 0:01:28]} Be6 {[%emt 0:00:32]} 7. O-O {[%emt 0:00:38]} Nd7 {[%emt 0:00:39]} 8. Nd2 {[%emt 0:02:52]} Nxe5 {[%emt 0:06:35]} 9. dxe5 {[%emt 0:01:12]} Bg7 {[%emt 0:01:22]} 10. Re1 {[%emt 0:03:32]} c6 {[%emt 0:01:47]} 11. Nb3 {[%emt 0:04:02]} Nf4 {[%emt 0:16:20]} 12. Bxf4 {[%emt 0:10:19]} Bxc4 {[%emt 0:02:05]} 13. Qxd8+ {[%emt 0:00:38]} Rxd8 {[%emt 0:03:15]} 14. Na5 {[%emt 0:00:26]} Ba6 {[%emt 0:10:41]} 15. Rad1 {[%emt 0:05:14]} O-O {[%emt 0:01:19]} 16. c4 {[%emt 0:05:49]} Rc8 {[%emt 0:03:28]} 17. Rd7 {[%emt 0:03:41]} Rfd8 {[%emt 0:15:56]} 18. Red1 {[%emt 0:03:46]} Rxd7 {[%emt 0:00:55]} 19. Rxd7 {[%emt 0:00:11]} h6 {[%emt 0:12:46]} 20. h3 {[%emt 0:07:16]} Kf8 {[%emt 0:02:55]} 21. Nxb7 {[%emt 0:02:46]} Bxc4 {[%emt 0:01:09]} 22. b3 {[%emt 0:02:23]} Be6 {[%emt 0:01:15]} 23. Rd4 {[%emt 0:01:03]} Ke8 {[%emt 0:02:03]} 24. Ra4 {[%emt 0:04:29]} Ra8 {[%emt 0:01:10]} 25. Nc5 {[%emt 0:04:40]} Bc8 {[%emt 0:02:53]} 26. Kf1 {[%emt 0:04:56]} e6 {[%emt 0:05:53]} 27. Ne4 {[%emt 0:00:54]} Bf8 {[%emt 0:00:52]} 28. Nf6+ {[%emt 0:00:41]} Kd8 {[%emt 0:00:38]} 29. Be3 {[%emt 0:02:58]} Kc7 {[%emt 0:01:25]} 30. Ke2 {[%emt 0:04:47]} a5 {[%emt 0:02:33]} 31. Rd4 {[%emt 0:05:24]} a4 {[%emt 0:02:33]} 32. b4 {[%emt 0:02:47]} Ba6+ {[%emt 0:00:47]} 33. Kf3 {[%emt 0:00:53]} Rd8 {[%emt 0:01:26]} 34. a3 {[%emt 0:02:56]} Rxd4 {[%emt 0:00:50]} 35. Bxd4 {[%emt 0:00:08]} c5 {[%emt 0:02:49]} 36. Bxc5 {[%emt 0:01:38]} Bxc5 {[%emt 0:00:14]} 37. bxc5 {[%emt 0:00:09]} Kc6 {[%emt 0:01:22]} 38. Ne4 {[%emt 0:00:45]} Bd3 {[%emt 0:00:48]} 39. Ke3 {[%emt 0:02:52]} Bf1 {[%emt 0:03:40]} 40. g3 {[%emt 0:05:18]} Kd5 {[%emt 0:02:23]} 41. Nc3+ {[%emt 0:51:53]} Kxc5 {[%emt 0:02:51]} 42. Nxa4+ {[%emt 0:00:00]} Kd5 {[%emt 0:03:58]} 43. f4 {[%emt 0:00:00]} Bxh3 {[%emt 0:00:48]} 44. Nb6+ {[%emt 0:00:00]} Kc6 {[%emt 0:01:43]} 45. Nc4 {[%emt 0:00:00]} Kd5 {[%emt 0:03:36]} 46. Na5 {[%emt 0:00:00]} g5 {[%emt 0:05:00]} 47. Nb7 {[%emt 0:00:00]} Bf5 {[%emt 0:00:55]} 48. a4 {[%emt 0:00:00]} Bg6 {[%emt 0:03:24]} 49. a5 {[%emt 0:00:00]} Kc6 {[%emt 0:00:14]} 50. Nd6 {[%emt 0:00:00]} g4 {[%emt 0:01:55]} 51. f5 {[%emt 0:00:00]} exf5 {[%emt 0:08:07]} 52. Kf4 {[%emt 0:00:00]} f6 {[%emt 0:03:43]} 53. Nxf5 {[%emt 0:00:00]} fxe5+ {[%emt 0:00:33]} 54. Kxe5 {[%emt 0:00:00]} Kb5 {[%emt 0:00:24]} 55. Nxh6 {[%emt 0:00:00]} Kxa5 {[%emt 0:00:22]} 56. Kf6 {[%emt 0:00:00]} Bc2 {[%emt 0:00:40]} 57. Nxg4 {[%emt 0:00:00]} Bd1 {[%emt 0:00:39]} 58. Ne3 {[%emt 0:00:00]} Be2 {[%emt 0:00:14]} 59. Kf5 {[%emt 0:00:00]} Kb5 {[%emt 0:00:25]} 60. Kf4 {[%emt 0:00:00]} Kc5 {[%emt 0:00:15]} 61. Nf5 {[%emt 0:00:00]} Kd5 {[%emt 0:00:30]} 62. Nh4 {[%emt 0:00:00]} Ke6 {[%emt 0:00:19]} 63. Nf3 {[%emt 0:00:00]} Bxf3 {[%emt 0:00:25]} 64. Kxf3 {[%emt 0:00:00]} 1/2-1/2